Workbook

Sheet Boodschappenlijst
M1: =berekeningen!M9 -> ZUIVEL TOTAAL
B2: Boodschappenlijst
C3: Klaar | D3: ITEM | E3: WINKEL | F3: CATEGORIE | G3: HOEV. | H3: EENHEID | I3: EENHEIDSPRIJS | J3: TOTAAL | K3: OPMERKING | M3: =berekeningen!L9 -> 37
C4: 1 | D4: Sinaasappels | E4: Buurtsuper | F4: Groenten en fruit | G4: 2 | H4: kg | I4: € 2.99 | J4: =IFERROR(Lijst[HOEV.]*Lijst[EENHEIDSPRIJS],"") -> € 5.98 | M4: =berekeningen!M8 -> GROENTEN EN FRUIT TOTAAL
D5: Appels | E5: Boomgaard | F5: Groenten en fruit | G5: 3 | H5: kg | I5: € 1.99 | J5: =IFERROR(Lijst[HOEV.]*Lijst[EENHEIDSPRIJS],"") -> € 5.97 | K5: Heb coupon | M5: =berekeningen!L8 -> 45
D6: Bananen | E6: Buurtsuper | F6: Groenten en fruit | G6: 1 | H6: tros | I6: € 3.99 | J6: =IFERROR(Lijst[HOEV.]*Lijst[EENHEIDSPRIJS],"") -> € 3.99
D7: Sla | E7: Markt | F7: Groenten en fruit | G7: 2 | H7: krop | I7: € 2.29 | J7: =IFERROR(Lijst[HOEV.]*Lijst[EENHEIDSPRIJS],"") -> € 4.58 | M7: =berekeningen!M7 -> VLEES TOTAAL
D8: Tomaten | E8: Markt | F8: Groenten en fruit | G8: 4 | H8: kg | I8: € 3.49 | J8: =IFERROR(Lijst[HOEV.]*Lijst[EENHEIDSPRIJS],"") -> € 13.96 | M8: =berekeningen!L7 -> 80
D9: Pompoen | E9: Markt | F9: Groenten en fruit | G9: 2 | H9: per stuk | I9: € 1.50 | J9: =IFERROR(Lijst[HOEV.]*Lijst[EENHEIDSPRIJS],"") -> € 3.00
D10: Selderij | E10: Buurtsuper | F10: Groenten en fruit | G10: 2 | H10: tros | I10: € 1.99 | J10: =IFERROR(Lijst[HOEV.]*Lijst[EENHEIDSPRIJS],"") -> € 3.98 | M10: =berekeningen!M6 -> VIS TOTAAL
D11: Komkommer | E11: Markt | F11: Groenten en fruit | G11: 1 | H11: kg | I11: € 2.29 | J11: =IFERROR(Lijst[HOEV.]*Lijst[EENHEIDSPRIJS],"") -> € 2.29 | M11: =berekeningen!L6 -> 109
D12: Champignons | E12: Buurtsuper | F12: Groenten en fruit | G12: 0.5 | H12: kg | I12: € 2.25 | J12: =IFERROR(Lijst[HOEV.]*Lijst[EENHEIDSPRIJS],"") -> € 1.13 | K12: Grote portobello
D13: Melk | E13: Thuisbezorgd | F13: Zuivel | G13: 2 | H13: liter | I13: € 3.99 | J13: =IFERROR(Lijst[HOEV.]*Lijst[EENHEIDSPRIJS],"") -> € 7.98 | M13: =berekeningen!M3 -> TOTAAL OVERIGE
D14: Kaas | E14: Thuisbezorgd | F14: Zuivel | G14: 1 | H14: kg | I14: € 9.99 | J14: =IFERROR(Lijst[HOEV.]*Lijst[EENHEIDSPRIJS],"") -> € 9.99 | K14: Verschillende stukken kaas | M14: =berekeningen!L3 -> 0
D15: Eieren | E15: Thuisbezorgd | F15: Zuivel | G15: 2 | H15: dozijn | I15: € 3.50 | J15: =IFERROR(Lijst[HOEV.]*Lijst[EENHEIDSPRIJS],"") -> € 7.00
D16: Hüttenkäse | E16: Thuisbezorgd | F16: Zuivel | G16: 1 | H16: 16 ons | I16: € 3.89 | J16: =IFERROR(Lijst[HOEV.]*Lijst[EENHEIDSPRIJS],"") -> € 3.89 | M16: =berekeningen!M4 -> TOTAAL BOODSCHAPPEN
D17: Zure room | E17: Thuisbezorgd | F17: Zuivel | G17: 1 | H17: 8 ons | I17: € 2.99 | J17: =IFERROR(Lijst[HOEV.]*Lijst[EENHEIDSPRIJS],"") -> € 2.99 | M17: =TotaalBoodschappen -> 271
D18: Yoghurt | E18: Buurtsuper | F18: Zuivel | G18: 1 | H18: 16 ons | I18: € 4.99 | J18: =IFERROR(Lijst[HOEV.]*Lijst[EENHEIDSPRIJS],"") -> € 4.99 | K18: Grieks met honing
D19: Rundvlees | E19: Markt | F19: Vlees | G19: 10 | H19: kg | I19: € 7.99 | J19: =IFERROR(Lijst[HOEV.]*Lijst[EENHEIDSPRIJS],"") -> € 79.90 | K19: Met spek omwikkelde filets
D20: Wilde zalm | E20: Vismarkt | F20: Vis | G20: 6 | H20: kg | I20: € 8.99 | J20: =IFERROR(Lijst[HOEV.]*Lijst[EENHEIDSPRIJS],"") -> € 53.94
D21: Grote krabbenpoten | E21: Vismarkt | F21: Vis | G21: 5 | H21: kg | I21: € 10.99 | J21: =IFERROR(Lijst[HOEV.]*Lijst[EENHEIDSPRIJS],"") -> € 54.95

Sheet berekeningen (hidden)
A1: *** Dit blad moet verborgen blijven ***
K3: =SUM(Lijst[TOTAAL])-SUM(K6:K9) -> € 0.00 | L3: =ROUND(K3,0) -> € 0 | M3: TOTAAL OVERIGE
L4: =ROUNDUP(SUM(Lijst[TOTAAL]),0) -> € 271 | M4: TOTAAL BOODSCHAPPEN
E6: =IFERROR(INDEX(Lijst[CATEGORIE],MATCH(,COUNTIF($E$5:E5,Lijst[CATEGORIE]),)),"") -> Groenten en fruit | F6: =SUMIFS(Lijst[TOTAAL],Lijst[CATEGORIE],E6) -> 44.875 | G6: =F6+ROW()/1000000 -> 44.875006 | H6: =LARGE($G$6:$G$21,1) -> 108.890009 | I6: =MATCH(H6,$G$6:$G$21,0) -> 4 | J6: =INDEX($E$6:$E$21,$I6) -> Vis | K6: =INDEX($F$6:$F$21,$I6) -> € 108.89 | L6: =ROUND(K6,0) -> € 109 | M6: =UPPER(J6) & " TOTAAL" -> VIS TOTAAL
E7: =IFERROR(INDEX(Lijst[CATEGORIE],MATCH(,COUNTIF($E$5:E6,Lijst[CATEGORIE]),)),"") -> Zuivel | F7: =SUMIFS(Lijst[TOTAAL],Lijst[CATEGORIE],E7) -> 36.84 | G7: =F7+ROW()/1000000 -> 36.840007 | H7: =LARGE($G$6:$G$21,2) -> 79.900008 | I7: =MATCH(H7,$G$6:$G$21,0) -> 3 | J7: =INDEX($E$6:$E$21,$I7) -> Vlees | K7: =INDEX($F$6:$F$21,$I7) -> € 79.90 | L7: =ROUND(K7,0) -> € 80 | M7: =UPPER(J7) & " TOTAAL" -> VLEES TOTAAL
E8: =IFERROR(INDEX(Lijst[CATEGORIE],MATCH(,COUNTIF($E$5:E7,Lijst[CATEGORIE]),)),"") -> Vlees | F8: =SUMIFS(Lijst[TOTAAL],Lijst[CATEGORIE],E8) -> 79.9 | G8: 79.900008 | H8: =LARGE($G$6:$G$21,3) -> 44.875006 | I8: =MATCH(H8,$G$6:$G$21,0) -> 1 | J8: =INDEX($E$6:$E$21,$I8) -> Groenten en fruit | K8: =INDEX($F$6:$F$21,$I8) -> € 44.88 | L8: =ROUND(K8,0) -> € 45 | M8: =UPPER(J8) & " TOTAAL" -> GROENTEN EN FRUIT TOTAAL
E9: =IFERROR(INDEX(Lijst[CATEGORIE],MATCH(,COUNTIF($E$5:E8,Lijst[CATEGORIE]),)),"") -> Vis | F9: =SUMIFS(Lijst[TOTAAL],Lijst[CATEGORIE],E9) -> 108.89 | G9: 108.890009 | H9: =LARGE($G$6:$G$21,4) -> 36.840007 | I9: =MATCH(H9,$G$6:$G$21,0) -> 2 | J9: =INDEX($E$6:$E$21,$I9) -> Zuivel | K9: =INDEX($F$6:$F$21,$I9) -> € 36.84 | L9: =ROUND(K9,0) -> € 37 | M9: =UPPER(J9) & " TOTAAL" -> ZUIVEL TOTAAL
E10: =IFERROR(INDEX(Lijst[CATEGORIE],MATCH(,COUNTIF($E$5:E9,Lijst[CATEGORIE]),)),"") ->  | F10: =SUMIFS(Lijst[TOTAAL],Lijst[CATEGORIE],E10) -> 0 | G10: 1e-05
E11: =IFERROR(INDEX(Lijst[CATEGORIE],MATCH(,COUNTIF($E$5:E10,Lijst[CATEGORIE]),)),"") ->  | F11: =SUMIFS(Lijst[TOTAAL],Lijst[CATEGORIE],E11) -> 0 | G11: 1.1e-05
E12: =IFERROR(INDEX(Lijst[CATEGORIE],MATCH(,COUNTIF($E$5:E11,Lijst[CATEGORIE]),)),"") ->  | F12: =SUMIFS(Lijst[TOTAAL],Lijst[CATEGORIE],E12) -> 0 | G12: 1.2e-05
E13: =IFERROR(INDEX(Lijst[CATEGORIE],MATCH(,COUNTIF($E$5:E12,Lijst[CATEGORIE]),)),"") ->  | F13: =SUMIFS(Lijst[TOTAAL],Lijst[CATEGORIE],E13) -> 0 | G13: 1.3e-05
E14: =IFERROR(INDEX(Lijst[CATEGORIE],MATCH(,COUNTIF($E$5:E13,Lijst[CATEGORIE]),)),"") ->  | F14: =SUMIFS(Lijst[TOTAAL],Lijst[CATEGORIE],E14) -> 0 | G14: 1.4e-05
E15: =IFERROR(INDEX(Lijst[CATEGORIE],MATCH(,COUNTIF($E$5:E14,Lijst[CATEGORIE]),)),"") ->  | F15: =SUMIFS(Lijst[TOTAAL],Lijst[CATEGORIE],E15) -> 0 | G15: 1.5e-05
E16: =IFERROR(INDEX(Lijst[CATEGORIE],MATCH(,COUNTIF($E$5:E15,Lijst[CATEGORIE]),)),"") ->  | F16: =SUMIFS(Lijst[TOTAAL],Lijst[CATEGORIE],E16) -> 0 | G16: 1.6e-05
E17: =IFERROR(INDEX(Lijst[CATEGORIE],MATCH(,COUNTIF($E$5:E16,Lijst[CATEGORIE]),)),"") ->  | F17: =SUMIFS(Lijst[TOTAAL],Lijst[CATEGORIE],E17) -> 0 | G17: 1.7e-05
E18: =IFERROR(INDEX(Lijst[CATEGORIE],MATCH(,COUNTIF($E$5:E17,Lijst[CATEGORIE]),)),"") ->  | F18: =SUMIFS(Lijst[TOTAAL],Lijst[CATEGORIE],E18) -> 0 | G18: 1.8e-05
E19: =IFERROR(INDEX(Lijst[CATEGORIE],MATCH(,COUNTIF($E$5:E18,Lijst[CATEGORIE]),)),"") ->  | F19: =SUMIFS(Lijst[TOTAAL],Lijst[CATEGORIE],E19) -> 0 | G19: 1.9e-05
E20: =IFERROR(INDEX(Lijst[CATEGORIE],MATCH(,COUNTIF($E$5:E19,Lijst[CATEGORIE]),)),"") ->  | F20: =SUMIFS(Lijst[TOTAAL],Lijst[CATEGORIE],E20) -> 0 | G20: 2e-05
E21: =IFERROR(INDEX(Lijst[CATEGORIE],MATCH(,COUNTIF($E$5:E20,Lijst[CATEGORIE]),)),"") ->  | F21: =SUMIFS(Lijst[TOTAAL],Lijst[CATEGORIE],E21) -> 0 | G21: 2.1e-05
